bitfinex-derivatives/quotes_BTCF0:USTF0_20250814
["timestamp","ask_amount","ask_price","bid_price","bid_amount"]
[1755189159225,0.2019244,117850.0,117840.0,1.5711]
[1755189160712,0.2019244,117850.0,117840.0,1.2103]
[1755189160911,0.2019244,117850.0,117840.0,1.13749]
[1755189161119,0.2019244,117850.0,117840.0,0.9799]
[1755189161520,0.2019244,117850.0,117840.0,1.5711]
[1755189163116,0.2019244,117850.0,117840.0,2.11385434]
[1755189163315,0.1019244,117850.0,117840.0,1.5719]
[1755189163517,0.0519244,117850.0,117840.0,2.11465434]
[1755189163719,0.24228243,117870.0,117850.0,0.07281]
[1755189163919,0.24228243,117870.0,117860.0,2.44213476]
[1755189164123,0.47905965,117870.0,117860.0,1.9275]
[1755189164627,0.25234728,117870.0,117860.0,1.5667]
[1755189164816,0.30426728,117870.0,117860.0,2.27608359]
[1755189165017,0.30426728,117870.0,117860.0,2.27600359]
[1755189165526,0.30626728,117870.0,117860.0,2.27600359]
[1755189165829,1.00796185,117870.0,117860.0,2.27600359]
[1755189166130,0.26726512,117870.0,117860.0,1.56662]
[1755189166320,0.31381512,117870.0,117860.0,1.49381]
[1755189166522,0.55601755,117870.0,117860.0,1.56662]
[1755189166827,0.55601755,117870.0,117860.0,1.56762]
[1755189167015,0.55601755,117870.0,117860.0,1.35120359]
[1755189167517,0.55401755,117870.0,117860.0,1.35220359]
[1755189167834,0.55401755,117870.0,117860.0,1.28131837]
[1755189168018,0.55501755,117870.0,117860.0,1.28131837]
[1755189168524,0.31381512,117870.0,117860.0,1.28131837]
[1755189168724,0.33606512,117870.0,117860.0,1.09512173]
[1755189168926,0.40407217,117870.0,117860.0,1.07218359]
[1755189169126,0.40307217,117870.0,117860.0,1.05226524]
[1755189169329,0.40407217,117870.0,117860.0,1.05226524]
[1755189169626,0.40407217,117870.0,117860.0,0.3628]
[1755189169824,1.3384727,117870.0,117860.0,0.3628]
[1755189170025,1.3384727,117870.0,117850.0,1.07018359]
[1755189170026,0.35534,117860.0,117850.0,1.28608]
[1755189170413,0.1,117860.0,117850.0,1.99546359]
[1755189170622,0.18485002,117860.0,117850.0,1.99546359]
[1755189170832,0.18485002,117860.0,117850.0,2.79784278]
[1755189171614,0.18485002,117860.0,117850.0,2.79964278]
[1755189172233,0.18485002,117860.0,117850.0,2.80064278]
[1755189173124,0.18585002,117860.0,117850.0,2.80464278]
[1755189173516,0.18585002,117860.0,117850.0,2.77676029]
[1755189173722,0.78897961,117870.0,117850.0,2.17553458]
[1755189173920,0.33829062,117870.0,117860.0,1.89195793]
[1755189174227,0.42314064,117870.0,117860.0,1.89195793]
[1755189174822,0.42314064,117870.0,117860.0,1.63572032]
[1755189175030,0.30407266,117880.0,117860.0,1.61780549]
[1755189175233,0.19642761,117880.0,117870.0,2.53769793]
[1755189175431,0.19642761,117880.0,117870.0,2.68273793]
[1755189175745,0.28126683,117880.0,117870.0,2.68273793]
[1755189176128,0.06706519,117880.0,117870.0,2.68353793]
[1755189176328,0.30242717,117890.0,117880.0,0.06963]
[1755189176637,0.30242717,117890.0,117880.0,1.65198399]
[1755189177025,0.3872628,117890.0,117880.0,1.65098399]
[1755189177423,0.2678628,117890.0,117880.0,1.65098399]
[1755189177621,0.08483563,117890.0,117880.0,1.49042084]
[1755189177826,0.19484334,117890.0,117880.0,1.49242084]
[1755189178036,0.08483563,117890.0,117880.0,1.49242084]
[1755189178535,0.08483563,117890.0,117880.0,1.67956166]
[1755189178737,0.13295563,117890.0,117880.0,1.65917209]
[1755189178935,0.13295563,117890.0,117880.0,2.36855568]
[1755189179137,0.13295563,117890.0,117880.0,1.44415568]
[1755189179339,0.13295563,117890.0,117880.0,2.36839568]
[1755189179340,0.20188045,117890.0,117880.0,2.36839568]
[1755189179839,0.15376045,117890.0,117880.0,2.36839568]
[1755189180033,0.15376045,117890.0,117880.0,2.36939568]
[1755189180432,0.15376045,117890.0,117880.0,2.36739568]
[1755189180630,0.15476045,117890.0,117880.0,2.37039568]
[1755189181041,0.15476045,117890.0,117880.0,2.3504853]
[1755189181433,0.15476045,117890.0,117880.0,2.48191771]
[1755189181636,0.15476045,117890.0,117880.0,2.48163771]
[1755189181637,0.20288045,117890.0,117880.0,2.48163771]
[1755189181831,0.44554045,117890.0,117880.0,0.004]
[1755189182032,0.44554045,117890.0,117880.0,1.63730359]
[1755189182237,0.44554045,117890.0,117880.0,2.48159771]
[1755189182432,0.55670555,117890.0,117880.0,2.12079771]
[1755189182632,0.31404555,117890.0,117880.0,2.48159771]
[1755189182935,0.26592555,117890.0,117880.0,2.45398691]
[1755189186041,0.08482843,117890.0,117880.0,1.53468077]
[1755189186344,0.08482843,117890.0,117880.0,2.47703771]
[1755189186541,0.13294843,117890.0,117880.0,2.47703771]
[1755189187448,0.08482843,117890.0,117880.0,2.47703771]
[1755189187838,0.13294843,117890.0,117880.0,2.47703771]
[1755189188441,0.08482843,117890.0,117880.0,2.47703771]
[1755189188644,0.08482843,117890.0,117880.0,2.64669371]
[1755189188850,0.27016444,117900.0,117880.0,2.64669371]
[1755189189150,0.32629411,117900.0,117890.0,1.52707294]
[1755189189642,0.32629411,117900.0,117890.0,1.69671293]
[1755189189868,0.32629411,117900.0,117890.0,1.53619002]
[1755189191162,0.32629411,117900.0,117890.0,1.36655003]
[1755189191464,0.0290995,117910.0,117890.0,1.36655003]
[1755189191465,0.17994571,117910.0,117890.0,1.36655003]
[1755189191662,0.47072571,117910.0,117900.0,0.3608]
[1755189191963,0.47152571,117910.0,117900.0,1.76693412]
[1755189192164,0.55634694,117910.0,117900.0,1.76693412]
[1755189192361,0.55634694,117910.0,117900.0,1.28344]
[1755189192561,0.31288694,117910.0,117900.0,2.47631771]
[1755189192761,0.31288694,117910.0,117900.0,1.99282359]
[1755189192963,0.11392073,117910.0,117900.0,1.99582359]
[1755189193158,0.26471195,117910.0,117900.0,2.47931771]
[1755189193469,0.26471195,117910.0,117900.0,2.11851771]
[1755189193660,0.31283195,117910.0,117900.0,2.47931771]
[1755189193969,0.16204073,117910.0,117900.0,2.47931771]
[1755189194267,0.76550073,117910.0,117900.0,1.63478359]
[1755189194466,0.76650073,117910.0,117900.0,2.12127771]
[1755189194661,0.40570073,117910.0,117900.0,2.12127771]
[1755189194861,0.40570073,117910.0,117900.0,1.41189412]
[1755189195064,0.76650073,117910.0,117900.0,1.19887771]
[1755189195270,0.76730073,117910.0,117900.0,0.003]
[1755189195458,0.76630073,117910.0,117900.0,0.9252]
[1755189195664,0.76630073,117910.0,117900.0,0.005]
[1755189196271,0.96340081,117910.0,117900.0,0.006]
[1755189197567,0.96340081,117910.0,117900.0,0.004]
[1755189197870,0.96260081,117910.0,117900.0,0.003]
[1755189198070,0.96340081,117910.0,117900.0,0.005]
[1755189198264,0.96240081,117910.0,117900.0,0.002]
[1755189198461,0.96160081,117910.0,117900.0,0.002]
[1755189198971,0.96340081,117910.0,117900.0,0.004]
[1755189199761,1.13693273,117910.0,117900.0,0.004]
[1755189199966,1.13613273,117910.0,117900.0,0.004]
[1755189200175,1.1330798,117910.0,117900.0,0.004]
[1755189200375,2.2547598,117910.0,117900.0,0.004]
[1755189200562,2.3547598,117910.0,117900.0,0.004]
[1755189200769,2.5398598,117910.0,117900.0,0.004]
[1755189200972,2.4539598,117910.0,117900.0,0.71338359]
[1755189201164,2.2547598,117910.0,117900.0,0.61096268]
[1755189201365,2.25781273,117910.0,117870.0,0.04657]
[1755189201567,0.3608,117890.0,117870.0,0.27381]
[1755189201767,0.3616,117900.0,117880.0,0.70938359]
[1755189201968,0.5616,117900.0,117890.0,0.70938359]
[1755189202166,0.71605404,117900.0,117890.0,0.70938359]
[1755189202970,0.71525404,117900.0,117890.0,0.70938359]
[1755189203570,1.46697404,117900.0,117890.0,0.75595359]
[1755189203781,1.10617404,117900.0,117890.0,0.75595359]
[1755189204088,1.3122995,117910.0,117900.0,0.02591024]
[1755189204269,1.4326895,117910.0,117900.0,1.4148012]
[1755189204465,0.5112895,117910.0,117900.0,1.4148012]
[1755189204670,0.60202754,117920.0,117910.0,0.0463]
[1755189204671,0.3608,117920.0,117910.0,0.0463]
[1755189204868,0.12951705,117920.0,117910.0,0.98963359]
[1755189205070,0.12951705,117920.0,117910.0,0.98863359]
[1755189205273,0.21433109,117920.0,117910.0,0.59475]
[1755189205473,0.28335109,117920.0,117910.0,1.28422411]
[1755189205886,0.21433109,117920.0,117910.0,1.12367657]
[1755189206181,0.37587109,117920.0,117910.0,1.12367657]
[1755189206570,0.0001,117930.0,117910.0,1.07098359]
[1755189206772,0.22957,117950.0,117920.0,2.47559771]
[1755189206977,0.22957,117950.0,117940.0,1.07018359]
[1755189207177,0.31437685,117950.0,117940.0,1.07018359]
[1755189207374,0.24634685,117950.0,117940.0,1.59997771]
[1755189207679,0.39765002,117950.0,117940.0,1.59997771]
[1755189207879,0.42628451,117950.0,117940.0,1.83392771]
[1755189208270,0.42628451,117950.0,117940.0,1.12454412]
[1755189208475,0.42628451,117950.0,117940.0,1.83392771]
[1755189208673,0.69100076,117950.0,117940.0,0.84429412]
[1755189208876,2.14228876,117950.0,117940.0,0.48549412]
[1755189209373,2.14228876,117950.0,117940.0,1.19487771]
[1755189209877,1.79429934,117950.0,117940.0,1.08022564]
[1755189210280,1.79429934,117950.0,117940.0,1.72027564]
[1755189210281,0.34301134,117950.0,117940.0,1.72027564]
[1755189210583,0.34301134,117950.0,117940.0,1.67727564]
[1755189210772,0.42628343,117950.0,117940.0,1.67807564]
[1755189210975,0.26474343,117950.0,117940.0,1.67807564]
[1755189211285,0.26474343,117950.0,117940.0,1.68007564]
[1755189211583,0.11344134,117950.0,117940.0,0.98419245]
[1755189211883,1.10107629,117970.0,117940.0,1.34699245]
[1755189212180,0.24209143,117960.0,117950.0,1.58674179]
[1755189212378,0.43885293,117960.0,117950.0,1.58674179]
[1755189212786,0.43885293,117960.0,117950.0,1.60712205]
[1755189212976,0.43885293,117960.0,117950.0,1.60792205]
[1755189212977,0.67499035,117960.0,117950.0,1.60792205]
[1755189213177,0.33100004,117970.0,117950.0,1.60792205]
[1755189213480,0.33100004,117970.0,117960.0,1.15393564]
[1755189213679,0.70335453,117970.0,117960.0,1.90983359]
[1755189213983,0.40149844,117970.0,117960.0,2.18837564]
[1755189214280,0.40149844,117970.0,117960.0,0.32584205]
[1755189214281,0.76229844,117970.0,117960.0,0.32584205]
[1755189214685,0.76309844,117970.0,117960.0,0.32784205]
[1755189214982,0.28758,117960.0,117930.0,0.20784]
[1755189215281,0.57339,117940.0,117930.0,0.20784]
[1755189215480,0.64838,117940.0,117930.0,0.16154]
[1755189215680,0.64838,117940.0,117930.0,0.20784]
[1755189215885,0.57339,117940.0,117930.0,0.20784]
[1755189216086,0.40991,117940.0,117930.0,0.98963359]
[1755189216290,0.08478528,117940.0,117930.0,2.27031359]
[1755189216492,0.08478528,117940.0,117930.0,2.27131359]
[1755189216778,0.24826528,117940.0,117930.0,1.22839388]
[1755189217079,0.37236528,117940.0,117930.0,1.78739388]
[1755189217281,0.37236528,117940.0,117930.0,0.16354]
[1755189217478,0.73316528,117940.0,117930.0,0.16154]
[1755189217682,0.73316528,117940.0,117930.0,0.23395]
[1755189217883,0.73316528,117940.0,117930.0,0.04856377]
[1755189218075,0.73316528,117940.0,117930.0,0.05056377]
[1755189218474,0.73316528,117940.0,117930.0,0.04956377]
[1755189218778,0.73316528,117940.0,117930.0,0.003]
[1755189219090,1.50642388,117960.0,117930.0,0.7246]
[1755189219382,1.50642388,117960.0,117940.0,0.3608]
[1755189219684,1.00486528,117960.0,117950.0,0.3608]
[1755189220083,1.17442528,117960.0,117950.0,0.3608]
[1755189220492,0.08478528,117960.0,117950.0,0.4071]
[1755189220678,0.08778528,117960.0,117950.0,0.64105]
[1755189221086,0.34356528,117960.0,117950.0,0.3608]
[1755189221482,0.34456528,117960.0,117950.0,0.3608]
[1755189221886,0.34356528,117960.0,117950.0,0.3608]
[1755189222082,0.34356528,117960.0,117950.0,0.64205]
[1755189222585,0.34356528,117960.0,117950.0,0.64105]
[1755189222586,0.24926528,117960.0,117950.0,0.64105]
[1755189222781,0.25026528,117960.0,117950.0,0.64105]
[1755189222982,0.44692469,117960.0,117950.0,0.64105]
[1755189223989,0.44592469,117960.0,117950.0,0.64205]
[1755189224286,0.44492469,117960.0,117950.0,0.64305]
[1755189224490,0.28144469,117960.0,117950.0,2.14859388]
[1755189224680,0.28144469,117960.0,117950.0,2.14939388]
[1755189225278,0.08478528,117960.0,117950.0,2.14939388]
[1755189225980,0.08478528,117960.0,117950.0,2.14859388]
[1755189226288,0.08478528,117960.0,117950.0,2.14939388]
[1755189226491,0.08478528,117960.0,117950.0,1.56305]
[1755189226690,0.08478528,117960.0,117950.0,2.14939388]
[1755189227188,0.08478528,117960.0,117950.0,2.14819388]
[1755189227389,0.28135063,117960.0,117950.0,2.14819388]
[1755189228386,0.28135063,117960.0,117950.0,1.22939388]
[1755189228586,0.08478528,117960.0,117950.0,1.22939388]
[1755189228791,0.08478528,117960.0,117950.0,2.1279898]
[1755189229488,0.08478528,117960.0,117950.0,2.10809036]
[1755189229688,0.08478528,117960.0,117950.0,1.52174648]
[1755189229890,0.08478528,117960.0,117950.0,1.40712571]
[1755189230092,0.08478528,117960.0,117950.0,1.99346959]
[1755189230685,0.08478528,117960.0,117950.0,1.40712571]
[1755189230887,0.08478528,117960.0,117950.0,1.93696507]
[1755189231087,0.28134678,117960.0,117950.0,1.93696507]
[1755189232295,0.32681144,117960.0,117950.0,1.93696507]
[1755189232887,0.32681144,117960.0,117950.0,2.14480507]
[1755189234398,0.08478528,117960.0,117950.0,2.14480507]
[1755189235902,0.08478528,117960.0,117950.0,2.1162664]
[1755189236198,0.15495528,117960.0,117940.0,0.53502]
[1755189236497,0.15495528,117960.0,117950.0,0.04683]
[1755189236498,0.13854528,117960.0,117950.0,0.04683]
[1755189236701,0.13854528,117960.0,117950.0,0.58185]
[1755189236895,0.13854528,117960.0,117950.0,1.29026338]
[1755189237198,0.13854528,117960.0,117950.0,0.58185]
[1755189237496,0.13934528,117960.0,117950.0,0.58185]
[1755189237899,0.13934528,117960.0,117950.0,0.91756]
[1755189238095,0.13934528,117960.0,117950.0,1.56966]
[1755189238299,0.13854528,117960.0,117950.0,1.56966]
[1755189238507,0.13854528,117960.0,117950.0,1.20886]
[1755189238700,0.13854528,117960.0,117950.0,1.56966]
[1755189238701,0.13934528,117960.0,117950.0,1.56966]
[1755189239002,0.13934528,117960.0,117950.0,1.20886]
[1755189239303,0.13934528,117960.0,117950.0,1.56966]
[1755189239493,0.13934528,117960.0,117950.0,1.20886]
[1755189239689,0.14034528,117960.0,117950.0,0.002]
[1755189239894,0.50214528,117960.0,117950.0,0.004]
[1755189240500,0.24798728,117960.0,117950.0,0.6561]
[1755189240801,0.19422728,117960.0,117950.0,2.28175338]
[1755189241106,0.95396928,117960.0,117950.0,2.28175338]
[1755189241296,0.26302975,117960.0,117950.0,2.28175338]
[1755189241501,0.50579197,117960.0,117950.0,1.36451338]
[1755189241800,0.55955197,117960.0,117950.0,0.3648]
[1755189242191,0.55955197,117960.0,117950.0,1.32871]
[1755189242391,0.55955197,117960.0,117950.0,1.57318]
[1755189242792,0.66345609,117980.0,117950.0,0.6561]
[1755189242987,0.70615553,117980.0,117960.0,0.22105]
[1755189243191,0.97569153,117980.0,117960.0,0.22105]
[1755189243398,1.06046962,117980.0,117960.0,0.22105]
[1755189243696,1.06126962,117980.0,117960.0,0.22105]
[1755189243898,1.00169451,117980.0,117970.0,0.04683]
[1755189244204,0.91664486,117980.0,117970.0,0.2913]
[1755189244393,1.34664923,117980.0,117970.0,0.04683]
[1755189244893,1.36288923,117980.0,117970.0,0.04683]
[1755189245294,1.36288923,117980.0,117970.0,0.22105]
[1755189245496,1.36288923,117980.0,117970.0,0.04683]
[1755189245696,1.6664523,117980.0,117970.0,0.04683]
[1755189245890,1.6664523,117980.0,117970.0,0.04783]
[1755189246496,1.6664523,117980.0,117970.0,0.04883]
[1755189247403,2.54439368,117980.0,117970.0,0.002]
[1755189247702,1.53241723,117980.0,117970.0,0.002]
[1755189248302,2.24163061,117980.0,117970.0,0.002]
[1755189248499,1.83321723,117980.0,117970.0,0.002]
[1755189248704,1.83241723,117980.0,117970.0,0.002]
[1755189249100,1.93321723,117980.0,117970.0,0.002]
[1755189249498,1.83321723,117980.0,117970.0,0.002]
[1755189249699,2.06723897,117980.0,117970.0,0.002]
[1755189250801,2.23676697,117980.0,117970.0,0.002]
[1755189251300,2.23596697,117980.0,117970.0,0.002]
[1755189251497,2.32186697,117980.0,117970.0,0.002]
[1755189251704,0.79351338,117970.0,117950.0,0.0624096]
[1755189251901,2.04118706,117960.0,117950.0,0.0624096]
[1755189252299,2.29551078,117960.0,117950.0,0.0624096]
[1755189252501,2.29551078,117960.0,117940.0,0.75524338]
[1755189252806,1.93471078,117960.0,117950.0,0.0624096]
[1755189253105,1.93571078,117960.0,117950.0,0.005]
[1755189253307,1.93571078,117960.0,117950.0,0.0674096]
[1755189253513,1.57391078,117960.0,117950.0,0.0644096]
[1755189253808,1.27132372,117960.0,117950.0,0.0644096]
[1755189254993,1.51408677,117960.0,117950.0,0.0644096]
[1755189255197,1.51508677,117960.0,117950.0,0.002]
[1755189256011,1.51508677,117960.0,117940.0,1.11604338]
[1755189256601,1.87588677,117960.0,117940.0,1.11604338]
[1755189256804,1.51508677,117960.0,117940.0,1.11604338]
[1755189257010,1.51508677,117960.0,117940.0,1.24343338]
[1755189257011,1.27232372,117960.0,117940.0,1.24343338]
[1755189257312,1.10276372,117960.0,117950.0,0.04683]
[1755189257609,1.10276372,117960.0,117950.0,0.70841338]
[1755189257906,1.14959372,117960.0,117950.0,1.22876166]
[1755189258214,1.04799372,117960.0,117950.0,1.22876166]
[1755189258512,1.00216372,117960.0,117950.0,1.20089636]
[1755189258718,0.08676372,117960.0,117950.0,1.31368338]
[1755189259103,0.08676372,117960.0,117950.0,1.31548338]
[1755189259609,0.08676372,117960.0,117950.0,1.36331338]
[1755189260319,0.08676372,117960.0,117950.0,2.25813399]
[1755189260812,0.08676372,117960.0,117950.0,2.23823279]
[1755189261016,0.08676372,117960.0,117950.0,2.00897115]
[1755189261212,0.08676372,117960.0,117950.0,1.98137523]
[1755189261410,0.08676372,117960.0,117950.0,1.91217331]
[1755189261806,0.6679332,117970.0,117950.0,2.57375669]
[1755189262000,0.36434614,117970.0,117960.0,1.82525676]
[1755189262209,0.36434614,117970.0,117960.0,0.40763]
[1755189262506,0.44912423,117970.0,117960.0,1.11604338]
[1755189263012,0.44912423,117970.0,117960.0,0.49243197]
[1755189263313,0.44912423,117970.0,117960.0,1.20184535]
[1755189263612,0.08477809,117970.0,117960.0,0.88443338]
[1755189263810,0.08477809,117970.0,117960.0,1.21385027]
[1755189264413,0.08477809,117970.0,117960.0,1.21305027]
[1755189264914,0.08577809,117970.0,117960.0,1.21305027]
[1755189265114,0.08577809,117970.0,117960.0,1.26261027]
[1755189265501,0.08477809,117970.0,117960.0,1.26261027]
[1755189265699,0.08577809,117970.0,117960.0,1.33601027]
[1755189266312,0.08577809,117970.0,117960.0,2.25045027]
[1755189267011,0.08577809,117970.0,117960.0,2.02120276]
[1755189267208,0.38946284,117970.0,117960.0,1.99360824]
[1755189267408,0.55194284,117970.0,117960.0,1.99360824]
[1755189267609,0.67159284,117970.0,117960.0,1.99360824]
[1755189268114,0.59823284,117970.0,117960.0,1.99360824]
[1755189268410,0.38946284,117970.0,117960.0,0.83137338]
[1755189268614,1.03239284,117970.0,117960.0,0.05056]
[1755189269207,0.72870809,117970.0,117960.0,0.28364]
[1755189270110,0.91817809,117970.0,117960.0,0.47214]
[1755189270309,0.91817809,117970.0,117960.0,1.18055338]
[1755189270310,0.55737809,117970.0,117960.0,1.18055338]
[1755189270710,0.91817809,117970.0,117960.0,1.18055338]
[1755189270911,1.11556626,117970.0,117960.0,1.18055338]
[1755189271216,0.75476626,117970.0,117960.0,1.02007071]
[1755189271409,0.99771408,117970.0,117960.0,0.69910892]
[1755189271612,1.35851408,117970.0,117960.0,0.77954892]
[1755189271818,0.4716,117960.0,117950.0,0.99404]
[1755189272011,0.4716,117960.0,117950.0,0.92483563]
[1755189272210,0.8324,117960.0,117950.0,0.92483563]
[1755189272406,0.8324,117960.0,117950.0,1.63324901]
[1755189272407,0.9171709,117960.0,117950.0,1.63324901]
[1755189272814,0.9181709,117960.0,117950.0,1.58748408]
[1755189273018,0.5573709,117960.0,117950.0,1.31840826]
[1755189273323,1.5502009,117960.0,117930.0,0.3608]
[1755189273516,0.72514614,117950.0,117930.0,0.69637]
[1755189273824,0.72514614,117950.0,117940.0,0.04956]
[1755189274024,0.72514614,117950.0,117940.0,0.28264]
[1755189274222,0.80993142,117950.0,117940.0,1.17955338]
[1755189274917,0.80993142,117950.0,117940.0,1.18055338]
[1755189274918,0.81093142,117950.0,117940.0,1.18055338]
[1755189275310,0.45013142,117950.0,117940.0,1.18055338]
[1755189275510,0.08578528,117950.0,117940.0,1.18055338]
[1755189276407,0.08678528,117950.0,117940.0,1.18255338]
[1755189277606,0.81193142,117950.0,117940.0,0.47414]
[1755189277811,0.81193142,117950.0,117940.0,0.24106]
[1755189278013,0.81273142,117950.0,117940.0,0.09976]
[1755189278213,1.99432216,117950.0,117940.0,0.003]
[1755189278517,2.47862216,117950.0,117940.0,0.003]
[1755189278716,1.77100878,117950.0,117940.0,0.00068324]
[1755189278920,0.14737,117940.0,117930.0,0.62349075]
[1755189279113,1.60603,117940.0,117930.0,0.35042443]
[1755189279315,1.775614,117940.0,117930.0,0.2655018]
[1755189279623,0.10529,117930.0,117900.0,0.70841338]
[1755189279921,0.3608,117920.0,117900.0,0.70841338]
[1755189280216,0.55088247,117930.0,117900.0,0.70841338]
[1755189280521,0.3608,117920.0,117900.0,1.06921338]
[1755189280710,0.42942246,117920.0,117910.0,0.70841338]
[1755189280908,0.52781246,117920.0,117910.0,0.99105338]
[1755189281420,0.82392084,117920.0,117910.0,0.99105338]
[1755189281614,0.08480685,117920.0,117910.0,0.99105338]
[1755189281920,0.08480685,117920.0,117910.0,2.26241338]
[1755189282225,0.08580685,117920.0,117910.0,1.35185338]
[1755189282522,0.3608,117930.0,117910.0,1.35185338]
[1755189282523,0.3608,117930.0,117920.0,0.12196]
[1755189282822,0.3608,117930.0,117920.0,0.99105338]
[1755189283022,0.08480685,117930.0,117920.0,0.70841338]
[1755189283223,0.08480685,117930.0,117920.0,0.70741338]
[1755189283524,0.32756291,117930.0,117920.0,0.70741338]
[1755189283718,0.32756291,117930.0,117920.0,0.99305338]
[1755189284025,0.32856291,117930.0,117920.0,0.99305338]
[1755189284321,0.32856291,117930.0,117920.0,0.97267004]
[1755189284725,0.32956291,117930.0,117920.0,0.97567004]
[1755189284923,0.32956291,117930.0,117920.0,0.7463574]
[1755189285119,0.99932028,117930.0,117920.0,0.7463574]
[1755189285324,0.08680685,117930.0,117920.0,0.7463574]
[1755189287025,0.08680685,117930.0,117920.0,0.53036941]
[1755189287222,0.60355606,117940.0,117920.0,1.52048941]
[1755189287424,0.3608,117940.0,117930.0,0.99105338]
[1755189287621,0.3608,117940.0,117930.0,1.17955338]
[1755189287818,0.32756177,117940.0,117930.0,1.17955338]
[1755189288126,0.32756177,117940.0,117930.0,1.54035338]
[1755189288828,0.32856177,117940.0,117930.0,1.54035338]
[1755189289127,0.001,117940.0,117930.0,1.54035338]
[1755189289315,0.08579247,117940.0,117930.0,1.54035338]
[1755189290023,0.08679247,117940.0,117930.0,2.45571338]
[1755189290328,0.08679247,117940.0,117930.0,1.54435338]
[1755189290524,0.08579247,117940.0,117930.0,2.45563338]
[1755189290721,0.08679247,117940.0,117930.0,2.45863338]
[1755189290921,0.08679247,117940.0,117930.0,2.22934893]
[1755189292423,0.08679247,117940.0,117930.0,2.20896849]
[1755189292926,0.08679247,117940.0,117930.0,1.88797729]
[1755189293126,0.08679247,117940.0,117930.0,2.07061884]
[1755189294129,0.32959095,117940.0,117930.0,2.07061884]
[1755189294428,0.32959095,117940.0,117930.0,1.83693338]
[1755189294627,0.32959095,117940.0,117930.0,1.11134338]
[1755189294931,0.32959095,117940.0,117930.0,1.17962338]
[1755189295223,0.80104095,117940.0,117930.0,1.92968344]
[1755189295529,0.80104095,117940.0,117930.0,1.01912344]
[1755189295723,0.72852095,117940.0,117930.0,0.41765]
[1755189295924,1.16184095,117940.0,117930.0,0.41765]
[1755189296123,0.91904247,117940.0,117930.0,0.41765]
[1755189297117,0.91904247,117940.0,117920.0,0.11594]
[1755189297118,0.63569247,117940.0,117920.0,0.11594]
[1755189297319,0.83225,117930.0,117920.0,0.11474]
[1755189297820,0.83225,117930.0,117920.0,0.04646]
[1755189298115,0.47145,117920.0,117910.0,0.82315338]
[1755189298321,0.83225,117920.0,117910.0,0.06535768]
[1755189298626,1.0296205,117920.0,117910.0,0.91931106]
[1755189298827,0.75362016,117920.0,117910.0,0.91931106]
[1755189299030,0.68110016,117920.0,117910.0,1.02588106]
[1755189299529,0.28217016,117920.0,117910.0,1.07313106]
[1755189299730,0.28317016,117920.0,117910.0,1.07513106]
[1755189300329,0.28317016,117920.0,117910.0,1.03584969]
[1755189300524,0.28317016,117920.0,117910.0,1.39664969]
[1755189300728,0.14973016,117920.0,117910.0,1.39744969]
[1755189301026,0.15184191,117920.0,117910.0,0.70403231]
[1755189301230,0.23764876,117920.0,117910.0,1.05164569]
[1755189301432,0.28287876,117920.0,117910.0,1.05164569]
[1755189301630,0.28287876,117920.0,117910.0,2.15242969]
[1755189301822,0.08580685,117920.0,117910.0,2.15322969]
[1755189302128,0.15184191,117930.0,117910.0,2.52384569]
[1755189302328,0.15184191,117930.0,117920.0,1.06921338]
[1755189302531,0.04523,117950.0,117920.0,1.23961338]
[1755189302730,0.04523,117950.0,117940.0,0.70841338]
[1755189302931,0.13002966,117950.0,117940.0,0.70841338]
[1755189303228,0.13002966,117950.0,117940.0,0.31864117]
[1755189303425,0.13002966,117950.0,117940.0,0.31664117]
[1755189303922,0.13002966,117950.0,117940.0,0.31564117]
[1755189304124,0.08479966,117950.0,117940.0,0.70841338]
[1755189304330,0.08479966,117950.0,117940.0,1.23878138]
[1755189304719,0.08579966,117950.0,117940.0,1.23878138]
[1755189304924,0.08679966,117950.0,117940.0,1.23978138]
[1755189305327,0.13202966,117950.0,117940.0,1.23978138]
[1755189306132,0.13202966,117950.0,117940.0,1.07121338]
[1755189306341,0.13202966,117950.0,117940.0,0.3628]
[1755189306540,0.13202966,117950.0,117940.0,1.07121338]
[1755189306731,0.13202966,117950.0,117940.0,0.71041338]
[1755189307042,0.13202966,117950.0,117940.0,1.07121338]
[1755189307221,0.55824966,117950.0,117940.0,0.002]
[1755189307426,0.37094966,117950.0,117940.0,0.002]
[1755189307621,0.37094966,117950.0,117920.0,1.08672445]
[1755189307622,0.73074966,117950.0,117920.0,1.08672445]
[1755189307829,1.10659297,117950.0,117940.0,0.003]
[1755189308225,1.53085635,117950.0,117930.0,0.90852]
[1755189308538,0.28415,117930.0,117920.0,0.90848]
[1755189308834,0.28415,117910.0,117900.0,1.26924]
[1755189309035,0.48150681,117910.0,117900.0,0.90844]
[1755189309225,0.48150681,117910.0,117900.0,0.67912044]
[1755189309423,0.48150681,117910.0,117900.0,1.38753382]
[1755189309625,0.48150681,117910.0,117900.0,0.70841338]
[1755189309840,0.52106568,117910.0,117900.0,0.90824]
[1755189310147,0.52106568,117910.0,117890.0,1.99472135]
[1755189310148,0.36651644,117910.0,117890.0,1.99472135]
[1755189310440,0.28802848,117900.0,117890.0,1.28730797]
[1755189310638,0.28802848,117900.0,117890.0,1.99572135]
[1755189311136,0.37284971,117900.0,117890.0,1.99572135]
[1755189311338,0.37284971,117900.0,117890.0,1.83519202]
[1755189312039,0.37384971,117900.0,117890.0,1.83519202]
[1755189312234,0.32861971,117900.0,117890.0,1.83519202]
[1755189312548,0.08682123,117900.0,117890.0,1.84119202]
[1755189312727,0.08682123,117900.0,117890.0,1.98445338]
[1755189313737,0.29845123,117900.0,117890.0,1.98445338]
[1755189313930,0.13205123,117900.0,117890.0,1.98445338]
[1755189315045,0.13205123,117900.0,117890.0,1.98345338]
[1755189315340,0.13205123,117900.0,117890.0,1.75511038]
[1755189315742,0.13205123,117900.0,117890.0,1.75411038]
[1755189316235,0.49285123,117900.0,117890.0,0.68680623]
[1755189316542,0.04523,117890.0,117880.0,0.68902554]
[1755189316727,0.04523,117890.0,117880.0,1.61669338]
[1755189317037,0.64495,117890.0,117880.0,1.61561338]
[1755189317244,0.72977123,117890.0,117880.0,1.5306725]
[1755189317842,0.73077123,117890.0,117880.0,1.5316725]
[1755189318229,1.41031946,117890.0,117880.0,0.82325912]
[1755189318436,1.33779946,117890.0,117880.0,1.5326725]
[1755189318747,1.17239946,117890.0,117880.0,1.5396725]
[1755189319338,1.24020504,117890.0,117880.0,1.37911159]
[1755189319945,1.24020504,117890.0,117880.0,1.29417071]
[1755189320147,1.54620646,117890.0,117880.0,1.20922983]
[1755189320347,1.54620646,117890.0,117880.0,1.12428895]
[1755189320550,1.54620646,117890.0,117880.0,1.03934807]
[1755189320749,1.54620646,117890.0,117880.0,0.24598063]
[1755189320945,1.54620646,117890.0,117880.0,0.86943995]
[1755189321546,1.54620646,117890.0,117880.0,1.54666722]
[1755189322048,1.14017646,117890.0,117880.0,1.54666722]